bitfinex/quotes_ETHUSD_20251201
["timestamp","ask_amount","ask_price","bid_price","bid_amount"]
[1764603661630,0.653,2741.1,2740.1,0.4564]
[1764603661838,0.653,2741.1,2741.0,0.001]
[1764603663636,0.653,2741.1,2739.2,0.4564]
[1764603663637,4.59857044,2741.1,2739.2,0.4564]
[1764603663804,0.72559411,2740.6,2739.4,7.30080697]
[1764603664003,0.72559411,2740.6,2739.3,0.6414]
[1764603664004,0.0993,2739.4,2738.3,0.1805]
[1764603664321,0.0993,2739.4,2737.5,3.65289092]
[1764603664322,0.405504,2739.2,2737.6,0.1805]
[1764603664530,0.405504,2739.2,2737.5,7.30591541]
[1764603664531,0.364,2738.6,2737.5,7.30591541]
[1764603664844,0.364,2738.6,2737.2,4.10973393]
[1764603664845,0.653,2738.5,2737.3,7.48693396]
[1764603665139,0.653,2738.4,2737.3,7.48693396]
[1764603665443,0.653,2738.3,2737.4,0.4564]
[1764603665641,0.653,2738.3,2737.3,0.1805]
[1764603665828,0.2974,2739.2,2737.5,10.95890409]
[1764603666032,0.2974,2739.2,2737.6,1.14153041]
[1764603666033,0.653,2738.8,2737.6,1.14153041]
[1764603666233,0.653,2738.8,2737.7,0.4564]
[1764603666822,0.653,2739.3,2737.8,0.653]
[1764603667019,0.2974,2740.5,2739.2,0.1805]
[1764603667254,0.2974,2740.5,2738.5,0.653]
[1764603667255,0.653,2740.4,2738.5,0.653]
[1764603667409,1.74727389,2740.4,2738.5,0.653]
[1764603667615,2.04467389,2740.4,2738.6,0.6369]
[1764603667810,0.93415343,2740.3,2738.7,14.60546972]
[1764603668044,1.23155343,2740.3,2738.7,11.41050229]
[1764603668251,4.15117786,2740.3,2738.8,0.4564]
[1764603668450,11.275976,2740.1,2738.1,3.65216756]
[1764603668744,11.275976,2740.1,2736.9,3.65374682]
[1764603668745,0.405504,2739.5,2737.4,0.4564]
[1764603668935,7.42557811,2739.3,2737.5,7.30593606]
[1764603669244,0.364,2739.2,2737.5,10.95890409]
[1764603669550,0.2974,2739.3,2737.6,0.4564]
[1764603669714,0.405504,2739.2,2737.7,1.50682721]
[1764603669920,0.364,2739.1,2737.6,0.4564]
[1764603670145,0.82489411,2739.5,2737.6,0.4564]
[1764603670345,0.653,2739.4,2737.6,0.4564]
[1764603670647,0.9504,2739.4,2737.6,0.4564]
[1764603671014,0.9504,2739.4,2737.6,2.32859074]
[1764603671209,1.74259411,2739.4,2737.6,2.32859074]
[1764603671531,1.74259411,2739.4,2737.7,0.4564]
[1764603671734,1.017,2739.4,2737.7,0.4564]
[1764603671935,0.653,2739.4,2737.8,18.26283875]
[1764603672233,0.653,2739.4,2737.9,1.87192387]
[1764603672432,0.653,2739.4,2737.9,2.32832387]
[1764603672631,1.3144,2739.4,2737.9,2.32832387]
[1764603672843,1.3144,2739.4,2737.9,0.4564]
[1764603672844,0.2974,2739.3,2737.9,0.4564]
[1764603673414,0.364,2739.2,2737.8,7.3051355]
[1764603673644,1.02299411,2739.3,2737.8,7.3051355]
[1764603673645,0.364,2739.0,2737.8,7.3051355]
[1764603673846,0.364,2739.0,2737.7,3.6526706]
[1764603673847,0.72559411,2739.0,2737.7,3.6526706]
[1764603674010,4.31225986,2739.1,2737.7,3.6526706]
[1764603674011,0.0987,2738.9,2737.7,3.6526706]
[1764603674211,0.653,2738.8,2737.7,0.4564]
[1764603674820,0.2974,2739.3,2737.7,0.4564]
[1764603675031,0.653,2739.2,2737.8,1.91314925]
[1764603675547,0.653,2739.2,2737.9,0.4564]
[1764603675748,0.653,2739.2,2738.0,0.653]
[1764603676048,0.0993,2739.9,2738.1,18.2608378]
[1764603676049,0.653,2739.8,2738.1,18.2608378]
[1764603676346,0.364,2739.7,2738.2,1.89138378]
[1764603676514,0.364,2739.7,2738.1,7.30433512]
[1764603676515,3.429239,2739.6,2738.1,7.30433512]
[1764603676720,0.405504,2739.4,2738.1,7.30433512]
[1764603677025,0.0987,2738.9,2738.1,3.65216756]
[1764603677344,0.3632,2738.7,2738.1,3.65216756]
[1764603677544,0.2974,2738.7,2737.4,0.4564]
[1764603677749,0.2974,2738.7,2736.8,7.30780472]
[1764603677750,0.0993,2737.5,2736.8,7.30780472]
[1764603677918,1.0162,2737.4,2736.1,7.30962955]
[1764603678117,1.0162,2737.4,2734.8,11.71365831]
[1764603678118,22.041257,2737.2,2735.1,0.1805]
[1764603678320,12.19051249,2737.3,2735.1,0.1805]
[1764603678321,0.72559411,2736.7,2735.8,3.65515656]
[1764603678521,0.3632,2736.5,2735.2,0.4564]
[1764603678727,0.3632,2736.5,2735.7,3.65525277]
[1764603678980,0.405504,2736.3,2734.2,0.1805]
[1764603679125,0.405504,2735.8,2733.9,0.4564]
[1764603679438,0.405504,2735.8,2732.7,11.71365831]
[1764603679439,0.3632,2734.9,2733.5,5.82834118]
[1764603679638,0.85240821,2734.8,2733.5,9.48665469]
[1764603679838,0.653,2734.8,2733.6,0.4564]
[1764603680040,0.653,2734.8,2733.7,0.1805]
[1764603680444,0.653,2734.8,2733.7,0.4564]
[1764603680639,0.653,2734.8,2733.6,7.3163519]
[1764603680853,0.653,2734.8,2733.6,3.65817222]
[1764603681235,0.0487,2734.7,2733.5,2.17011019]
[1764603681427,0.0997041,2734.6,2733.5,5.8284237]
[1764603681773,0.0487,2734.7,2733.5,5.8284237]
[1764603681774,0.0487,2734.7,2733.5,9.48672562]
[1764603682266,0.3632,2735.0,2733.6,0.4564]
[1764603682425,0.0487,2735.4,2733.6,0.4564]
[1764603682426,0.653,2734.9,2733.6,0.4564]
[1764603682625,0.653,2734.9,2733.5,13.14503913]
[1764603682626,0.7017,2734.9,2733.5,5.8284237]
[1764603682929,0.5052081,2734.7,2733.5,2.17011019]
[1764603683256,11.71365831,2735.1,2733.5,2.17011019]
[1764603683257,0.653,2734.6,2733.6,0.4564]
[1764603683464,0.653,2734.6,2733.7,0.1805]
[1764603683827,0.653,2734.6,2733.9,10.97333478]
[1764603684227,0.653,2734.6,2733.8,0.4564]
[1764603684453,0.653,2734.6,2733.8,7.77222412]
[1764603684641,0.653,2734.6,2733.8,8.56749653]
[1764603684836,0.653,2734.6,2733.8,15.42692065]
[1764603685064,0.653,2734.6,2733.9,0.4564]
[1764603685281,3.65697568,2734.5,2733.5,2.17011019]
[1764603685573,0.653,2734.6,2733.5,2.17011019]
[1764603685574,0.654,2734.4,2733.5,2.17011019]
[1764603686173,1.37959411,2734.4,2733.5,2.17011019]
[1764603686340,0.405504,2734.2,2733.5,2.17011019]
[1764603686663,0.768704,2734.2,2733.5,2.17011019]
[1764603686956,1.27795757,2734.3,2733.5,2.17011019]
[1764603687165,1.0172,2734.4,2733.5,2.17011019]
[1764603687166,1.0172,2734.4,2733.5,5.82837489]
[1764603687340,0.3632,2734.2,2733.5,2.17011019]
[1764603687539,0.0487,2734.3,2733.5,2.17011019]
[1764603687540,0.39016088,2734.3,2733.5,2.17011019]
[1764603687748,0.3632,2734.0,2733.5,2.17011019]
[1764603687936,0.4119,2734.2,2733.5,2.17011019]
[1764603688138,0.34028771,2734.8,2734.1,0.1946]
[1764603688342,0.34028771,2734.8,2733.5,9.48673721]
[1764603688343,0.0487,2734.7,2733.5,5.8284237]
[1764603688543,11.71365831,2735.1,2733.5,2.17011019]
[1764603688761,9.013275,2735.0,2733.5,2.17011019]
[1764603688985,0.36392,2734.2,2733.5,2.17011019]
[1764603689270,3.858507,2733.9,2731.6,0.6619]
[1764603689436,0.405504,2734.0,2731.0,0.47434041]
[1764603689437,0.405504,2733.4,2731.0,0.47434041]
[1764603689636,0.03666259,2733.5,2731.0,11.72069872]
[1764603689958,0.03666259,2733.5,2731.5,0.4524]
[1764603689959,0.36392,2733.0,2731.5,0.4524]
[1764603690159,0.405504,2733.2,2731.0,0.00704041]
[1764603690160,0.405504,2732.6,2731.0,0.00704041]
[1764603690344,0.405504,2732.8,2731.0,0.00704041]
[1764603690544,0.405504,2732.8,2731.3,0.1986]
[1764603690755,0.654,2732.9,2731.3,0.1986]
[1764603690756,0.654,2732.9,2731.6,0.4524]
[1764603691068,1.01792,2732.9,2731.8,5.85684413]
[1764603691294,1.01792,2732.9,2731.9,3.66034312]
[1764603691579,0.46972914,2732.8,2731.8,2.19628099]
[1764603691870,0.36392,2732.5,2731.8,2.19628099]
[1764603692073,0.36392,2732.6,2731.8,2.19628099]
[1764603692280,0.654,2732.9,2732.2,0.4524]
[1764603692637,0.654,2732.9,2732.1,0.01161577]
[1764603692881,0.654,2732.9,2732.1,10.99216923]
[1764603693039,0.654,2732.9,2732.1,11.44456923]
[1764603693243,0.03666259,2733.5,2732.8,0.1986]
[1764603693744,0.03666259,2733.5,2732.9,0.4524]
[1764603694071,0.654,2734.9,2732.9,0.4524]
[1764603694072,0.654,2734.9,2733.3,14.6343248]
[1764603694276,0.654,2734.9,2733.4,0.4524]
[1764603694574,0.654,2734.9,2733.5,1.8745306]
[1764603694791,0.654,2734.9,2733.7,11.71365831]
[1764603695078,4.30942423,2735.7,2733.7,11.71365831]
[1764603695258,0.36392,2735.6,2733.8,1.305]
[1764603695577,0.654,2735.7,2733.8,0.651]
[1764603695736,0.654,2735.7,2733.9,0.4524]
[1764603695942,0.7537041,2735.7,2734.0,10.97293341]
[1764603696146,0.7537041,2735.7,2734.0,12.24835237]
[1764603696378,0.7537041,2735.7,2734.1,0.4524]
[1764603696671,0.654,2735.7,2734.1,0.4524]
[1764603696872,0.36392,2735.6,2734.1,0.4524]
[1764603697075,0.19117891,2736.3,2735.2,11.71365831]
[1764603697275,0.19117891,2736.3,2734.2,0.7309091]
[1764603697479,0.19117891,2736.3,2734.9,11.71365831]
[1764603697674,0.19117891,2736.3,2736.2,0.1986]
[1764603697980,0.654,2737.6,2736.3,10.96371009]
[1764603698147,0.654,2737.6,2736.3,11.41611009]
[1764603698343,0.8973987,2739.3,2736.5,11.71365831]
[1764603698647,0.8973987,2739.3,2736.6,1.93600583]
[1764603698648,6.211534,2739.0,2736.6,1.93600583]
[1764603698842,7.95540186,2739.2,2737.0,11.71365831]
[1764603698843,0.654,2739.2,2737.0,11.71365831]
[1764603699061,0.36392,2738.6,2736.7,0.4524]
[1764603699276,3.600463,2739.1,2736.9,11.71365831]
[1764603699481,1.03314272,2739.0,2737.4,11.71365831]
[1764603699682,1.01792,2739.0,2737.4,11.71365831]
[1764603699972,1.01792,2739.0,2737.5,11.41130409]
[1764603699973,1.01712,2739.0,2737.5,11.41130409]
[1764603700545,0.36392,2739.4,2737.6,12.16605831]
[1764603700747,1.8425421,2740.4,2738.1,11.71365831]
[1764603700748,0.57279879,2740.3,2738.1,11.71365831]
[1764603700968,0.654,2740.2,2738.1,11.71365831]
[1764603701174,0.36392,2740.0,2738.2,0.651]
[1764603701360,0.654,2740.2,2738.3,1.23646583]
[1764603701361,1.01792,2740.2,2738.3,1.23646583]
[1764603701560,1.01792,2740.2,2738.3,1.68886583]
[1764603701561,0.654,2740.2,2738.3,1.68886583]
[1764603701766,0.654,2740.1,2738.4,0.4524]
[1764603701968,3.64856976,2740.8,2738.7,10.95410229]
[1764603702158,0.002,2741.3,2738.7,18.25683715]
[1764603702159,0.36392,2740.6,2738.7,18.25683715]
[1764603702479,0.653,2740.5,2739.1,11.71365831]
[1764603702785,0.653,2740.5,2738.8,0.4524]
[1764603703381,7.29872408,2741.0,2739.1,11.71365831]
[1764603703549,0.36392,2740.4,2738.8,0.4524]
[1764603703954,0.36392,2740.4,2738.9,7.3022016]
[1764603703955,0.72559411,2740.3,2738.9,7.3022016]
[1764603704155,0.36392,2740.4,2738.9,10.9533024]
[1764603704382,5.03134149,2740.9,2739.0,0.4524]
[1764603704581,1.38287241,2740.9,2739.1,11.71365831]
[1764603704879,0.36592,2741.0,2739.2,0.653]
[1764603704880,0.002,2741.0,2739.2,0.653]
[1764603705058,0.653,2740.9,2739.6,11.71365831]
[1764603705266,0.653,2740.9,2739.7,0.4524]
[1764603705483,0.002,2741.0,2739.7,0.4524]
[1764603706279,0.002,2741.0,2739.6,11.71365831]
[1764603706280,0.002,2741.0,2739.6,0.4524]
[1764603706479,0.36392,2740.9,2739.5,0.4524]
[1764603706685,0.002,2741.0,2739.5,0.4524]
[1764603706986,0.002,2741.0,2737.0,1.85165523]
[1764603706987,1.49501811,2740.7,2738.8,4.10351913]
[1764603707228,0.36592,2741.0,2739.4,11.71365831]
[1764603707490,0.653,2740.8,2739.4,11.71365831]
[1764603707654,0.002,2741.0,2739.5,1.1054]
[1764603707852,0.002,2741.0,2739.5,0.4524]
[1764603708051,0.002,2741.0,2739.7,7.30006934]
[1764603708358,0.002,2741.0,2739.6,0.4524]
[1764603708564,0.002,2741.0,2739.7,0.1986]
[1764603708766,0.36392,2740.9,2739.7,0.1986]
[1764603709000,0.653,2740.8,2739.8,0.4524]
[1764603710163,0.653,2740.8,2739.9,3.64976823]
[1764603710363,1.19214024,2740.7,2739.9,3.64976823]
[1764603710707,3.65033819,2741.0,2739.9,3.64976823]
[1764603710708,0.002,2741.0,2740.1,11.71365831]
[1764603710872,0.002,2741.0,2740.0,0.4524]
[1764603711468,0.002,2741.0,2739.7,0.1986]
[1764603711469,3.64843664,2740.9,2739.7,3.84861665]
[1764603711696,0.7298769,2740.8,2739.7,0.1986]
[1764603711896,1.0937969,2740.8,2739.7,0.1986]
[1764603712080,0.7298769,2740.8,2739.8,7.7522029]
[1764603712383,0.652,2740.9,2739.8,0.4524]
[1764603712583,0.652,2740.9,2739.8,4.10228356]
[1764603712584,1.74151411,2740.9,2739.8,4.10228356]
[1764603712767,1.74151411,2740.9,2739.7,0.1986]
[1764603713206,0.652,2740.9,2739.7,7.95106763]
[1764603713409,1.01592,2740.9,2739.7,7.95106763]
[1764603713596,4.66622353,2741.0,2739.8,0.4524]
[1764603713909,4.66622353,2741.0,2739.7,0.1986]
[1764603713910,1.19536166,2740.9,2739.7,0.1986]
[1764603714068,1.19536166,2740.9,2739.5,0.4524]
[1764603714069,0.72559411,2740.7,2739.5,0.4524]
[1764603714274,0.72559411,2740.7,2739.4,0.1986]
[1764603714469,0.72559411,2740.7,2739.0,0.1986]
[1764603714470,0.36392,2740.4,2739.0,0.1986]
[1764603714739,0.652,2740.3,2739.0,0.1986]
[1764603714865,0.72559411,2740.8,2739.1,0.4524]
[1764603715071,1.01592,2740.5,2739.1,0.4524]
[1764603715267,0.36392,2740.4,2739.1,0.4524]
[1764603715505,0.36392,2740.4,2739.0,0.1986]
[1764603715798,0.36392,2740.4,2738.7,0.4524]
[1764603715799,0.36392,2739.9,2738.7,0.4524]
[1764603715986,0.652,2739.8,2738.7,0.4524]
[1764603716187,4.301948,2739.8,2738.7,7.75505791]
[1764603716498,4.301948,2739.8,2738.2,0.8506]
[1764603716499,0.36392,2739.5,2738.2,0.1986]
[1764603716699,0.36392,2739.5,2738.2,4.3030011]
[1764603717003,0.72559411,2739.7,2737.5,12.16605831]
[1764603717004,0.405504,2739.4,2737.5,12.16605831]
[1764603717170,0.405504,2739.2,2737.8,7.50371182]
[1764603717370,0.652,2739.1,2737.8,4.30354407]
[1764603717582,0.36392,2739.0,2737.8,3.85114407]
[1764603717894,0.36392,2739.0,2736.8,3.85247067]
[1764603717895,0.36392,2738.6,2736.9,3.65370016]
[1764603718100,0.405504,2738.8,2737.4,0.4524]
[1764603718101,0.72559411,2738.3,2737.4,0.4524]
[1764603718298,0.652,2738.5,2736.9,7.30744755]
[1764603718467,0.72559411,2738.4,2737.2,0.4524]
[1764603719001,1.08951411,2738.4,2737.2,0.4524]
[1764603719499,0.36392,2739.0,2737.2,0.4524]
[1764603719805,0.405504,2738.6,2737.2,0.4524]
[1764603719977,0.652,2738.9,2737.2,0.4524]
[1764603719978,0.36392,2738.5,2737.2,0.4524]
[1764603720304,3.39039,2739.3,2737.3,10.95970479]
[1764603720469,3.39039,2739.3,2737.2,12.16605831]
[1764603720470,2.466345,2739.1,2737.2,12.16605831]
[1764603720674,2.466345,2739.1,2736.8,3.85247058]
[1764603720675,4.864833,2738.4,2736.8,3.85247058]
[1764603720903,0.36392,2738.1,2737.0,0.4898]
[1764603721110,0.652,2738.3,2736.2,0.1986]
[1764603721268,0.652,2738.3,2736.3,4.14437003]
[1764603721269,0.36392,2737.6,2736.3,4.14437003]
[1764603721470,5.91520776,2739.2,2736.8,11.71365831]
[1764603721471,0.459039,2739.2,2736.8,11.71365831]
[1764603721693,0.822959,2739.2,2737.5,0.1832]
[1764603721893,1.01592,2739.1,2737.6,0.4898]
[1764603722094,1.01592,2739.1,2737.9,10.95730302]
[1764603722095,0.652,2739.1,2737.9,10.95730302]
[1764603722310,0.652,2739.1,2737.9,14.60973736]
[1764603722604,1.2,2739.4,2738.5,9.61341094]
[1764603722805,0.2,2739.4,2739.3,0.1832]
[1764603723179,0.2,2739.4,2738.0,2.69753957]
[1764603723180,0.1992,2739.4,2738.9,0.1832]
[1764603723389,0.1992,2739.4,2737.6,0.4898]
[1764603723390,0.4976,2739.3,2737.6,0.4898]
[1764603723582,0.4976,2739.3,2736.8,0.1832]
[1764603723583,0.769424,2738.9,2737.1,7.79667966]
[1764603723796,0.36392,2738.6,2737.2,0.4898]
[1764603723974,0.405504,2738.7,2737.2,0.4898]
[1764603724175,0.405504,2738.7,2736.8,0.1832]
[1764603724176,0.405504,2738.4,2736.8,0.1832]
[1764603724385,0.36392,2738.2,2736.9,0.4898]
[1764603724603,0.1902,2738.3,2736.9,0.92249024]
[1764603724604,0.652,2738.1,2736.9,0.92249024]
[1764603724808,0.36392,2738.1,2736.9,0.4898]
[1764603725606,0.652,2738.2,2736.8,0.1832]
[1764603725607,0.4976,2738.0,2736.8,0.1832]
[1764603725905,0.4976,2738.0,2736.4,0.4898]
[1764603725906,0.405504,2737.7,2736.4,0.4898]
[1764603726111,0.405504,2737.7,2734.8,3.83974347]
[1764603726112,0.1197,2736.5,2735.5,0.1832]
[1764603726273,0.1197,2736.5,2735.3,0.4898]
[1764603726274,0.652,2736.4,2735.3,0.4898]
[1764603726473,0.652,2736.4,2735.4,0.4898]
[1764603726689,1.01592,2736.4,2735.4,0.4898]
[1764603726884,0.652,2736.4,2735.4,0.4898]
[1764603727108,0.652,2736.4,2734.8,0.1832]
[1764603727109,0.4976,2736.3,2734.8,0.673]
[1764603727314,0.4976,2736.3,2734.9,0.1832]
[1764603727483,0.18760744,2736.2,2734.8,3.83976348]
[1764603727685,0.18760744,2736.2,2734.8,3.83974476]
[1764603728007,0.36392,2736.0,2734.8,0.1832]
[1764603728209,0.4976,2736.1,2734.2,9.61341094]
[1764603728210,0.72559411,2735.7,2734.2,0.4898]
[1764603728379,0.72559411,2735.7,2733.7,7.80589174]
[1764603728380,0.36392,2735.4,2733.7,7.80589174]
[1764603728582,1.455607,2735.6,2733.8,1.1418]
[1764603728583,0.36392,2735.5,2733.8,1.1418]
[1764603728778,1.953207,2735.6,2733.8,1.1418]
[1764603728779,0.652,2735.6,2734.4,9.61341094]
[1764603729004,0.652,2735.6,2734.4,10.26541094]
[1764603729317,0.36392,2735.3,2733.6,0.1832]
[1764603729515,0.4976,2735.5,2733.9,0.4898]
[1764603730312,0.652,2735.6,2734.1,10.97253207]
[1764603730511,1.22319411,2735.5,2733.9,4.14747342]
[1764603730713,1.22319411,2735.5,2733.6,0.1832]
[1764603730714,0.36392,2735.1,2733.6,0.1832]
[1764603730876,0.91862155,2735.4,2733.7,7.80589174]
[1764603731079,0.91862155,2735.4,2733.7,11.46393761]
[1764603731280,0.91862155,2735.4,2733.8,0.4898]
[1764603731791,0.652,2735.6,2733.8,0.4898]
[1764603731994,1.22319411,2735.5,2733.8,0.4898]
[1764603732184,0.4976,2735.5,2733.9,11.62533478]
[1764603732386,1.22319411,2735.4,2734.0,1.86351348]
[1764603732617,0.86152,2735.3,2733.8,4.79968763]
[1764603732918,0.86152,2735.3,2732.7,3.65932441]
[1764603732919,0.86152,2735.3,2732.6,0.1832]
[1764603732920,0.1902,2733.9,2732.6,0.1832]
[1764603733080,0.652,2734.0,2732.7,3.65936708]
[1764603733279,0.36392,2733.9,2732.7,3.65926531]
[1764603733503,0.4976,2733.9,2732.6,0.1832]
[1764603733723,0.652,2734.0,2732.7,0.4898]
[1764603733888,0.652,2734.0,2733.0,0.4898]
[1764603734296,0.4976,2734.4,2733.1,7.31769784]
[1764603734533,0.4976,2734.3,2732.1,0.50141577]
[1764603734683,5.658847,2734.2,2732.6,0.4898]
[1764603734890,0.769424,2734.0,2732.6,0.4898]
[1764603735085,0.769424,2734.0,2732.1,0.01161577]
[1764603735086,0.36392,2733.6,2732.1,0.01161577]
[1764603735295,1.1496,2733.9,2732.1,0.01161577]
[1764603735502,0.36392,2733.6,2732.4,3.6597045]
[1764603735788,0.4976,2733.8,2732.8,3.65922422]
[1764603736108,1.27880455,2734.4,2732.8,3.65922422]
[1764603736109,0.4976,2734.8,2733.1,0.4898]
[1764603736309,0.36392,2734.6,2733.2,7.3174301]
[1764603736510,1.1496,2734.7,2733.2,7.3174301]
[1764603736511,2.23911411,2734.7,2733.2,7.3174301]
[1764603736713,0.4976,2735.2,2733.6,0.4898]
[1764603737022,0.1902,2735.7,2733.5,0.653]
[1764603737023,0.86152,2734.9,2733.5,0.001]
[1764603737235,0.4976,2734.9,2733.5,0.001]
[1764603737400,0.36392,2734.7,2733.5,0.001]
[1764603737598,0.4976,2734.8,2733.5,0.001]
[1764603737790,0.4976,2734.8,2733.5,0.4908]
[1764603738119,0.652,2735.1,2733.5,0.4908]
[1764603738120,0.36392,2734.9,2733.5,0.4908]
[1764603738319,0.4976,2735.3,2733.6,7.31635936]
[1764603738508,0.86152,2735.2,2733.7,1.14654428]
[1764603738824,0.4976,2735.2,2733.7,1.81954428]
[1764603738989,0.652,2735.3,2733.8,0.4898]
[1764603739423,1.51352,2735.3,2733.8,0.4898]
[1764603739611,1.1496,2735.3,2733.9,0.652]
[1764603739791,3.84561629,2735.7,2733.8,0.4898]
[1764603739993,0.4976,2735.6,2733.9,1.14329552]
[1764603740310,0.4976,2735.6,2734.4,7.31421884]
[1764603740491,0.4976,2735.6,2733.9,1.14329552]
[1764603740691,0.1902,2735.7,2734.2,9.61341094]
[1764603740892,0.57357738,2735.8,2734.2,9.61341094]
[1764603741124,0.4976,2735.7,2734.3,1.1418]
[1764603741288,0.4976,2735.7,2734.3,0.4898]
[1764603741289,0.36392,2735.6,2734.3,0.4898]
[1764603741493,0.36392,2735.6,2734.4,0.4898]
[1764603741689,0.86152,2735.5,2734.0,0.652]
[1764603741946,0.86152,2735.5,2734.1,0.652]
[1764603741947,0.652,2735.4,2734.1,0.652]
[1764603742095,0.652,2735.4,2734.1,0.4898]
[1764603742292,0.652,2735.4,2734.2,7.31475384]
[1764603742612,0.652,2735.4,2734.2,9.50198548]
[1764603742823,0.4976,2735.3,2733.7,0.1832]
[1764603743006,0.4976,2735.3,2733.8,0.4898]
[1764603743328,0.72559411,2735.3,2733.8,0.4898]
[1764603743535,1.22319411,2735.3,2733.8,0.4898]
[1764603743734,1.58711411,2735.3,2733.8,0.4898]
[1764603743892,0.4976,2735.2,2733.8,0.4898]
[1764603744228,4.87934506,2735.2,2733.9,3.65777826]
[1764603744393,0.4976,2735.2,2733.9,3.65777826]
[1764603744599,0.4976,2735.3,2733.9,10.97333478]
[1764603744793,0.86152,2735.2,2734.0,1.43811747]
[1764603744998,0.86152,2735.2,2734.0,0.4898]
[1764603745196,0.36392,2735.2,2734.0,0.4898]
[1764603745425,0.4976,2735.1,2733.7,0.1832]
[1764603745625,0.4976,2735.1,2733.7,4.33104587]
[1764603745799,0.4976,2735.1,2733.7,12.29913761]
[1764603745996,0.72559411,2735.3,2733.8,1.71971376]
[1764603746314,11.46571931,2735.2,2733.7,0.1832]
[1764603746514,0.36392,2734.6,2733.5,0.001]
[1764603746724,0.652,2734.5,2733.5,0.001]
[1764603746904,0.8422,2734.5,2733.5,7.31762571]
[1764603747261,9.235169,2733.5,2731.8,2.11026364]
[1764603747451,0.1902,2731.9,2731.8,2.11026364]
[1764603747734,0.1902,2731.9,2730.6,0.652]
[1764603747942,0.1902,2732.3,2731.1,0.652]
[1764603748120,0.405504,2732.9,2731.0,3.6687028]
[1764603748330,0.862304,2733.0,2731.1,0.652]
[1764603748507,0.36392,2732.8,2731.2,1.16440276]
[1764603748824,2.07773309,2732.9,2731.0,3.6687028]
[1764603749013,0.36392,2732.6,2731.0,3.6687028]
[1764603749213,0.36392,2732.6,2731.1,0.652]
[1764603749214,0.652,2732.6,2731.1,0.652]
[1764603749424,1.01592,2732.6,2731.2,0.4899]
[1764603749628,0.652,2732.6,2731.3,0.652]
[1764603749841,0.652,2732.6,2731.0,0.49694041]
[1764603749842,0.897304,2732.5,2731.0,0.49694041]
[1764603750040,0.652,2732.6,2731.0,0.49694041]
[1764603750041,5.958565,2731.9,2731.0,0.00704041]
[1764603750197,3.66072409,2731.7,2731.0,0.00704041]
[1764603750400,0.36392,2731.4,2731.0,0.00704041]
[1764603750594,0.36392,2731.4,2727.5,0.1984]
[1764603750595,30.0,2730.8,2727.5,0.1984]
[1764603750849,30.0,2730.8,2726.8,2.27479339]
[1764603750850,30.0,2730.8,2727.6,0.4975]
[1764603750851,0.1902,2728.8,2727.6,0.4975]
[1764603751009,0.1902,2728.8,2727.0,0.1984]
[1764603751010,0.1902,2728.8,2727.0,0.8504]
[1764603751212,0.36392,2728.6,2726.8,2.27479339]
[1764603751544,0.72146124,2729.2,2726.8,2.27479339]
[1764603751545,0.4918,2729.4,2727.7,0.4975]
[1764603751693,0.90113283,2730.2,2726.8,2.27479339]
[1764603751694,0.4918,2729.3,2726.8,2.27479339]
[1764603751899,0.36392,2728.9,2727.1,0.4975]
[1764603752171,0.405504,2728.7,2728.0,0.99949779]
[1764603752436,0.0997041,2727.7,2726.8,2.27479339]
[1764603752704,0.405504,2728.4,2726.8,2.27479339]
[1764603752705,0.57024241,2728.8,2726.9,1.1495]
[1764603752850,0.57510012,2729.3,2726.9,1.1495]
[1764603752851,0.90113283,2729.7,2727.6,0.1984]
[1764603753056,2.47392174,2730.5,2727.6,0.1984]
[1764603753057,9.61341094,2731.3,2728.7,0.1984]
[1764603753262,2.9739505,2731.5,2729.3,9.61341094]
[1764603753263,0.17896874,2731.5,2729.3,9.61341094]
[1764603753461,0.17896874,2731.5,2729.9,9.61341094]
[1764603753691,0.17896874,2731.5,2728.8,0.72559411]
[1764603753692,0.17896874,2731.5,2730.0,0.4975]
[1764603753877,4.15185416,2732.2,2730.1,0.652]
[1764603754078,0.652,2732.4,2730.1,0.1984]
[1764603754262,0.85572,2732.3,2730.3,3.66260117]
[1764603754466,9.61341094,2732.0,2730.2,0.4975]
[1764603754664,0.4918,2732.2,2730.1,0.1984]
[1764603754881,15.29117524,2732.4,2730.1,1.3479]
[1764603754882,0.4918,2732.1,2730.1,1.3479]
[1764603755155,4.31181596,2732.4,2730.1,12.33641386]
[1764603755382,0.5742769,2732.2,2730.2,0.4975]
[1764603755593,0.4918,2732.3,2730.2,0.4975]
[1764603755754,21.24479198,2732.4,2730.2,0.4975]
[1764603755755,0.57430052,2731.9,2730.2,0.4975]
[1764603755957,0.36392,2731.3,2729.6,0.6959]
[1764603756201,1.13109811,2731.0,2729.0,0.4975]
[1764603756384,1.13109811,2730.8,2729.0,4.16184338]
[1764603756887,0.36392,2730.6,2729.1,0.4975]
[1764603757091,0.36392,2730.6,2729.1,0.97888434]
[1764603757301,0.4918,2730.6,2729.1,0.4975]
[1764603757588,0.85572,2730.6,2729.1,0.4975]
[1764603757792,0.405504,2731.0,2729.2,0.4975]
[1764603757958,0.405504,2731.0,2729.0,3.66434581]
[1764603757959,0.405504,2730.8,2729.0,3.66434581]
[1764603758301,0.405504,2730.8,2728.0,3.66564105]
[1764603758302,0.083,2729.1,2727.0,0.1984]
[1764603758499,0.083,2729.1,2725.4,0.1984]
[1764603758500,0.36392,2728.5,2726.0,9.61341094]
[1764603758670,0.36392,2728.3,2726.9,0.22757934]
[1764603758991,0.36392,2728.3,2726.0,9.61341094]
[1764603758992,0.405504,2728.4,2726.0,9.61341094]
[1764603759213,0.7178738,2728.9,2725.4,0.1984]
[1764603759214,0.4918,2728.7,2725.4,0.1984]
[1764603759506,10.26541094,2729.0,2725.4,0.1984]
[1764603759507,0.36392,2727.7,2725.5,9.61341094]